Workbook

Sheet 基本資料設定
C1: 燃料/單位： | D1: 煤碳-公噸
A2: 基本資料計算
A3: 每日工作時數 | B3: 24 | C3: 每月工作天數 | D3: 30
A4: 預估節能成效 | B4: 0.15 | C4: 富氧劑添加量(ml) | D4: =VLOOKUP(D1,添加量對應表!$A:$B,2,FALSE) -> 100
A6: 燃料相關資訊
A7: ="燃料每小時用量("&D1&")" -> 燃料每小時用量(煤碳-公噸) | B7: 111.2 | C7: ="燃料單價("&D1&"/台幣)" -> 燃料單價(煤碳-公噸/台幣) | D7: =400*5.1 -> 2040
A8: ="每日燃料用量("&D1&")" -> 每日燃料用量(煤碳-公噸) | B8: =B7*B3 -> 2668.8 | C8: 每日燃料成本(台幣) | D8: =B8*D7 -> 5444352
A11: 富氧劑相關資訊
A12: 每日富氧劑用量(ml) | B12: =B8*D4 -> 266880 | C12: 富氧劑單價(ml/台幣) | D12: 2
A13: 每日富氧劑成本(台幣) | B13: =B12*D12 -> 533760 | C13: 富氧劑單價(公升/台幣) | D13: =1000*D12 -> 2000
A16: 業務獎金試算
A17: 業務獎金/ml | B17: 1 | C17: 業務獎金/每日 | D17: =B17*1000*B12 -> 266880000
A18: 業務獎金/每月 | B18: =D17*D3 -> 8006400000 | C18: 業務獎金/每年 | D18: =B18*12 -> 96076800000
A21: 設備相關資訊
A22: 採購及建置金額 | B22: 1000000 | C22: 折舊年限/年 | D22: 5
A23: 每年提列折舊費用 | B23: =B22/D22 -> 200000 | C23: 每月提列折舊費用 | D23: =B23/12 -> 16666.66667
A24: 每年提列維護費用 | B24: 0.05 | C24: 人事薪資/月 | D24: 0

Sheet 計算分析
A1: 計算單位 | B1: 單月 | C1: =VLOOKUP(B1,添加量對應表!$D:$E,2,FALSE) -> 1 | J1: 計算幣別：新台幣
B2: ="耗費燃料量("&基本資料設定!D1&")" -> 耗費燃料量(煤碳-公噸) | C2: 燃料成本 | D2: 富氧劑用量(ml) | E2: 富氧劑成本 | F2: 累積成本 | G2: 機器設備提列折舊 | H2: 維護費用 | I2: 額外人力 | J2: 累計成本
A3: 未節能估算 | B3: =基本資料設定!B8*基本資料設定!D3*計算分析!C1 -> 80064 | C3: =計算分析!B3*基本資料設定!D$7 -> 163330560 | D3: 0 | E3: 0 | F3: =C3+E3 -> 163330560 | G3: 0 | H3: 0 | I3: 0 | J3: =F3+G3 -> 163330560
A4: 富氧劑應用估算 | B4: =B3*(1-基本資料設定!B4) -> 68054.4 | C4: =計算分析!B4*基本資料設定!D$7 -> 138830976 | D4: =基本資料設定!B12*基本資料設定!D3*C1 -> 8006400 | E4: =(D4*基本資料設定!D12) -> 16012800 | F4: =C4+E4 -> 154843776 | G4: =基本資料設定!D23*C1 -> 16666.66667 | H4: =基本資料設定!B$22*基本資料設定!B$24/12*計算分析!C$1 -> 4166.666667 | I4: =基本資料設定!D24*1.2*計算分析!C1 -> 0 | J4: =SUM(F4:I4) -> 154864609.3
A5: 成效計算 | B5: =B3-B4 -> 12009.6 | C5: =C3-C4 -> 24499584 | D5: =-(D3-D4) -> 8006400 | E5: =-(E3-E4) -> 16012800 | F5: 8486784 | G5: -16666.66667 | H5: -4166.666667 | I5: =I3-I4 -> 0 | J5: =J3-J4 -> 8465950.667
B8: 效益試算表
B9: 計算基準 | C9: 燃料成本 | D9: 富氧劑應用後燃料成本 | E9: 節省成本 | F9: 節能率 | G9: 設備採購 | H9: 富氧劑採購成本 | I9: 設備折舊攤提 | J9: 其它費用(人事+維修) | K9: 增加成本總計 | L9: 節能淨值 | M9: 淨節能率 | N9: 累積節能效益
B10: 1 | C10: =C$3 -> 163330560 | D10: =C$4 -> 138830976 | E10: =C10-D10 -> 24499584 | F10: =E10/C10 -> 0.15 | G10: =基本資料設定!B22 -> 1000000 | H10: =E$4 -> 16012800 | I10: =IF(B$1="全年",IF(B10<=基本資料設定!D$22,基本資料設定!B$23,0),IF(B10<=基本資料設定!D$22*12,基本資料設定!D$23,0)) -> 16666.66667 | J10: =(基本資料設定!D$25*1.2*C$1)+(基本資料設定!B$23*基本資料設定!B$25) -> 0 | K10: =SUM(H10:J10) -> 16029466.67 | L10: =E10-K10 -> 8470117.333 | M10: =F10-(K10/C10) -> 0.05185874176 | N10: =L10 -> 8470117.333
B11: 2 | C11: =C$3 -> 163330560 | D11: =C$4 -> 138830976 | E11: =C11-D11 -> 24499584 | F11: =E11/C11 -> 0.15 | H11: =E$4 -> 16012800 | I11: =IF(B$1="全年",IF(B11<=基本資料設定!D$22,基本資料設定!B$23,0),IF(B11<=基本資料設定!D$22*12,基本資料設定!D$23,0)) -> 16666.66667 | J11: =(基本資料設定!D$25*1.2*C$1)+(基本資料設定!B$23*基本資料設定!B$25) -> 0 | K11: =SUM(H11:J11) -> 16029466.67 | L11: =E11-K11 -> 8470117.333 | M11: =F11-(K11/C11) -> 0.05185874176 | N11: =N10+L11 -> 16940234.67
B12: 3 | C12: 163330560 | D12: 138830976 | E12: 24499584 | F12: 0.15 | H12: 16012800 | I12: =IF(B$1="全年",IF(B12<=基本資料設定!D$22,基本資料設定!B$23,0),IF(B12<=基本資料設定!D$22*12,基本資料設定!D$23,0)) -> 16666.66667 | J12: =(基本資料設定!D$25*1.2*C$1)+(基本資料設定!B$23*基本資料設定!B$25) -> 0 | K12: 16029466.67 | L12: 8470117.333 | M12: 0.05185874176 | N12: =N11+L12 -> 25410352
B13: 4 | C13: 163330560 | D13: 138830976 | E13: 24499584 | F13: 0.15 | H13: 16012800 | I13: =IF(B$1="全年",IF(B13<=基本資料設定!D$22,基本資料設定!B$23,0),IF(B13<=基本資料設定!D$22*12,基本資料設定!D$23,0)) -> 16666.66667 | J13: =(基本資料設定!D$25*1.2*C$1)+(基本資料設定!B$23*基本資料設定!B$25) -> 0 | K13: 16029466.67 | L13: 8470117.333 | M13: 0.05185874176 | N13: 33880469.33
B14: 5 | C14: 163330560 | D14: 138830976 | E14: 24499584 | F14: 0.15 | H14: 16012800 | I14: =IF(B$1="全年",IF(B14<=基本資料設定!D$22,基本資料設定!B$23,0),IF(B14<=基本資料設定!D$22*12,基本資料設定!D$23,0)) -> 16666.66667 | J14: =(基本資料設定!D$25*1.2*C$1)+(基本資料設定!B$23*基本資料設定!B$25) -> 0 | K14: 16029466.67 | L14: 8470117.333 | M14: 0.05185874176 | N14: 42350586.67
B15: 6 | C15: 163330560 | D15: 138830976 | E15: 24499584 | F15: 0.15 | H15: 16012800 | I15: =IF(B$1="全年",IF(B15<=基本資料設定!D$22,基本資料設定!B$23,0),IF(B15<=基本資料設定!D$22*12,基本資料設定!D$23,0)) -> 16666.66667 | J15: =(基本資料設定!D$25*1.2*C$1)+(基本資料設定!B$23*基本資料設定!B$25) -> 0 | K15: 16029466.67 | L15: 8470117.333 | M15: 0.05185874176 | N15: 50820704
B16: 7 | C16: 163330560 | D16: 138830976 | E16: 24499584 | F16: 0.15 | H16: 16012800 | I16: =IF(B$1="全年",IF(B16<=基本資料設定!D$22,基本資料設定!B$23,0),IF(B16<=基本資料設定!D$22*12,基本資料設定!D$23,0)) -> 16666.66667 | J16: =(基本資料設定!D$25*1.2*C$1)+(基本資料設定!B$23*基本資料設定!B$25) -> 0 | K16: 16029466.67 | L16: 8470117.333 | M16: 0.05185874176 | N16: 59290821.33
B17: 8 | C17: 163330560 | D17: 138830976 | E17: 24499584 | F17: 0.15 | H17: 16012800 | I17: =IF(B$1="全年",IF(B17<=基本資料設定!D$22,基本資料設定!B$23,0),IF(B17<=基本資料設定!D$22*12,基本資料設定!D$23,0)) -> 16666.66667 | J17: =(基本資料設定!D$25*1.2*C$1)+(基本資料設定!B$23*基本資料設定!B$25) -> 0 | K17: 16029466.67 | L17: 8470117.333 | M17: 0.05185874176 | N17: 67760938.67
B18: 9 | C18: 163330560 | D18: 138830976 | E18: 24499584 | F18: 0.15 | H18: 16012800 | I18: =IF(B$1="全年",IF(B18<=基本資料設定!D$22,基本資料設定!B$23,0),IF(B18<=基本資料設定!D$22*12,基本資料設定!D$23,0)) -> 16666.66667 | J18: =(基本資料設定!D$25*1.2*C$1)+(基本資料設定!B$23*基本資料設定!B$25) -> 0 | K18: 16029466.67 | L18: 8470117.333 | M18: 0.05185874176 | N18: 76231056
B19: 10 | C19: 163330560 | D19: 138830976 | E19: 24499584 | F19: 0.15 | H19: 16012800 | I19: =IF(B$1="全年",IF(B19<=基本資料設定!D$22,基本資料設定!B$23,0),IF(B19<=基本資料設定!D$22*12,基本資料設定!D$23,0)) -> 16666.66667 | J19: =(基本資料設定!D$25*1.2*C$1)+(基本資料設定!B$23*基本資料設定!B$25) -> 0 | K19: 16029466.67 | L19: 8470117.333 | M19: 0.05185874176 | N19: 84701173.33
B20: 11 | C20: 163330560 | D20: 138830976 | E20: 24499584 | F20: 0.15 | H20: 16012800 | I20: =IF(B$1="全年",IF(B20<=基本資料設定!D$22,基本資料設定!B$23,0),IF(B20<=基本資料設定!D$22*12,基本資料設定!D$23,0)) -> 16666.66667 | J20: =(基本資料設定!D$25*1.2*C$1)+(基本資料設定!B$23*基本資料設定!B$25) -> 0 | K20: 16029466.67 | L20: 8470117.333 | M20: 0.05185874176 | N20: 93171290.67
B21: 12 | C21: 163330560 | D21: 138830976 | E21: 24499584 | F21: 0.15 | H21: 16012800 | I21: =IF(B$1="全年",IF(B21<=基本資料設定!D$22,基本資料設定!B$23,0),IF(B21<=基本資料設定!D$22*12,基本資料設定!D$23,0)) -> 16666.66667 | J21: =(基本資料設定!D$25*1.2*C$1)+(基本資料設定!B$23*基本資料設定!B$25) -> 0 | K21: 16029466.67 | L21: 8470117.333 | M21: 0.05185874176 | N21: 101641408
B22: 總計 | C22: =SUM(C10:C21) -> 1959966720 | D22: =SUM(D10:D21) -> 1665971712 | E22: 293995008 | F22: 0.15 | G22: 1000000 | H22: 192153600 | I22: 200000 | J22: 0 | K22: =SUM(K10:K21) -> 192353600 | L22: =SUM(L10:L21) -> 101641408 | M22: 0.05185874176 | N22: =SUM(N10:N21) -> 660669152

Sheet 添加量對應表
A1: 單位用量對應表 | D1: 統計單位對應表
A2: 項目 | B2: 添加量(ml) | D2: 項目 | E2: 數量
A3: 重油-公秉 | B3: 200 | D3: 單月 | E3: 1
A4: 重油-公升 | B4: 0.2 | D4: 全年 | E4: 12
A5: 瓦斯-度 | B5: 0.2
A6: 煤碳-公噸 | B6: 100
A7: 煤碳-公斤 | B7: 0.1

Sheet Option
A1: 燃料類別 | B1: 統計方式
A2: 重油 | B2: 單月
A3: 瓦斯 | B3: 全年
A4: 煤碳
